[Event "Prague Festival-Challengers 2022"]
[Site "Prague"]
[Date "2022.06.08"]
[Round "1.1"]
[White "Keymer, Vincent"]
[Black "Hracek, Zbynek"]
[Result "1-0"]
[ECO "D02"]
[WhiteElo "2667"]
[BlackElo "2570"]
[Annotator "TA"]
[PlyCount "85"]
[EventDate "2022.06.07"]
[EventType "tourn"]
[EventCountry "CZE"]
[SourceTitle "playchess.com"]
[Source "ChessBase"]
[SourceQuality "1"]
[TimeControl "40/5400+30:1800+30"]

{[%evp 9,85,0,28,19,13,10,49,45,58,68,87,77,80,85,87,87,91,57,53,58,75,54,50,12,28,36,35,40,16,24,22,13,13,10,36,7,10,6,61,64,65,65,65,59,68,34,36,47,159,160,266,291,435,447,436,434,431,416,456,450,441,434,443,439,605,593,587,575,665,658,601,0,631,602,641,579,514,498]} 1. Nf3 {[%emt 0:00:05]} d5 {[%emt 0:00:14]} 2. g3 {[%emt 0:00:16]} Nd7 {[%emt 0:02:52]} 3. d4 {[%emt 0:00:50]} Ngf6 {[%emt 0:00:19]} 4. Bg2 {[%emt 0:02:44]} e6 {[%emt 0:00:38]} 5. a4 {[%emt 0:13:37][%cal Ba2a4,Ba4a5,Ba5a6][%mdl 32] [#]} c5 $146 {[%emt 0:12:00]} ({Predecessor:} 5... Be7 6. O-O O-O 7. c4 a5 8. Qc2 c6 9. Nbd2 Nb8 10. e4 Na6 11. Re1 Nb4 {1-0 (47) Vajda,L (2547)-Shengelia,D (2522) Hungary 2019}) 6. O-O {[%emt 0:04:44][%cal Oc2c4] D02: 1 d4 d5 2 Nf3 sidelines, including 2...Nf6 3 g3 and 2...Nf6 3 Bf4.} b6 {[%emt 0:02:13]} 7. c4 {[%emt 0:05:51]} Bb7 {[%emt 0:04:10]} 8. cxd5 $1 {[%emt 0:03:15] White is slightly better.} exd5 {[%emt 0:03:58]} 9. a5 {[%emt 0:05:53]} Be7 {[%emt 0:03:22]} 10. a6 {[%emt 0:03:19]} Bc6 {[%emt 0:00:31]} 11. Ne5 {[%emt 0:00:58]} Nxe5 {[%emt 0:05:28]} 12. dxe5 {[%emt 0:00:04]} Nd7 {[%emt 0:00:03]} 13. Nc3 {[%emt 0:16:14]} Nxe5 {[%emt 0:00:16]} 14. Nxd5 {[%emt 0:00:10]} Rc8 {[%emt 0:04:23]} 15. Bf4 {[%emt 0:03:31]} Ng6 {[%emt 0:03:32]} 16. Ra3 {[%emt 0:09:10][%cal Ba1a3,Ba3d3,Bd3d5][%mdl 32]} Bxd5 {[%emt 0:21:14]} (16... O-O $5 {[%cal Re7f6]}) 17. Rd3 {[%emt 0:03:58]} Nxf4 {[%emt 0:01:32]} 18. gxf4 {[%emt 0:01:45]} O-O {[%emt 0:03:50][%cal Od5g2] [#] Strongly threatening ...Bxg2!} 19. Rxd5 {[%emt 0:00:49]} Qe8 {[%emt 0:00:36]} 20. Bh3 {[%emt 0:04:19] Bd7 is the strong threat.} Rc7 {[%emt 0:07:27]} 21. Bd7 $36 {[%emt 0:00:30][%mdl 2048] White fights for an advantage.} Qb8 {[%emt 0:01:35]} 22. Qa4 {[%emt 0:03:10]} c4 {[%emt 0:02:30]} 23. e3 {[%emt 0:00:24]} c3 {[%emt 0:01:14]} (23... Rd8 $11) 24. bxc3 $14 {[%emt 0:00:10]} Rxc3 {[%emt 0:00:05]} 25. Rfd1 {[%emt 0:01:44]} Rc5 {[%emt 0:06:53]} 26. Qe4 {[%emt 0:04:50]} Rxd5 $1 {[%emt 0:00:37]} 27. Qxd5 {[%emt 0:01:25]} (27. Rxd5 $5 {[%cal Re4e7]} Bd6 28. Rd4 $14) 27... Rd8 {[%emt 0:01:33]} 28. Qb7 {[%emt 0:03:12]} b5 {[%emt 0:05:34] White stays focused until the end.} ({Black should play} 28... Kf8 $14) 29. Kg2 $16 {[%emt 0:00:49][%cal Od7b5] 0x0.0017620c08f0dp-1022s more active pieces.} b4 {[%emt 0:03:53] [#]} (29... Bd6 $16 {might work better.} 30. Bxb5 Qc7) 30. Ba4 $1 $18 {[%emt 0:00:19]} Qxb7+ {[%emt 0:02:15]} (30... Kf8 {was worth a try.} 31. Rxd8+ Qxd8) 31. axb7 {[%emt 0:00:26][%mdl 4096] Endgame Rxd8+ would kill now. KRB-KRB} Rb8 {[%emt 0:00:04]} 32. Rd7 {[%emt 0:00:12]} Kf8 {[%emt 0:00:02]} 33. e4 {[%emt 0:01:17][%cal Be3e4,Be4e5][%mdl 32]} g6 {[%emt 0:00:52]} 34. Kf3 {[%emt 0:03:21]} Ke8 {[%emt 0:01:08]} 35. Ke2 {[%emt 0:00:30]} b3 {[%emt 0:00:35]} 36. Kd3 {[%emt 0:00:44]} ({Less strong is} 36. Rd3+ Kf8 37. Rxb3 Bd8 $18) 36... a5 {[%emt 0:00:24]} 37. e5 {[%emt 0:01:08]} Bb4 {[%emt 0:00:31]} 38. f3 {[%emt 0:01:54][%cal Bf2f3,Bf3f4][%mdl 32]} h5 {[%emt 0:00:25]} 39. Rc7+ {[%emt 0:01:34]} Kd8 {[%emt 0:00:05]} 40. Rd7+ {[%emt 0:00:00]} Ke8 {[%emt 0:00:00]} 41. h3 {[%emt 0:03:56] White is clearly winning.} h4 {[%emt 0:06:38]} 42. f5 {[%emt 0:10:25]} gxf5 {[%emt 0:00:09]} 43. f4 {[%emt 0:00:06] Weighted Error Value: White=0.20 (precise) /Black=0.26 (precise)} 1-0

[Event "Prague Festival-Challengers 2022"]
[Site "Prague"]
[Date "2022.06.08"]
[Round "1.2"]
[White "Sasikiran, Krishnan"]
[Black "Warmerdam, Max"]
[Result "1/2-1/2"]
[ECO "B97"]
[WhiteElo "2651"]
[BlackElo "2614"]
[Annotator "TA"]
[PlyCount "56"]
[EventDate "2022.06.07"]
[EventType "tourn"]
[EventCountry "CZE"]
[SourceTitle "playchess.com"]
[Source "ChessBase"]
[SourceQuality "1"]
[TimeControl "40/5400+30:1800+30"]

{[%evp 18,56,0,-41,0,0,0,0,-21,-46,-45,-100,-10,-14,-14,-15,-17,-17,-16,-14,-18,-16,24,24,15,18,30,45,30,25,17,32,32,32,32,0,35,0,25,0,31]} 1. e4 {[%emt 0:00:13]} c5 {[%emt 0:00:10]} 2. Nf3 {[%emt 0:00:25]} d6 {[%emt 0:00:10]} 3. d4 {[%emt 0:01:44]} cxd4 {[%emt 0:00:06]} 4. Nxd4 {[%emt 0:00:04]} Nf6 {[%emt 0:00:05]} 5. Nc3 {[%emt 0:00:12]} a6 {[%emt 0:00:15]} 6. Bg5 {[%emt 0:02:58]} e6 {[%emt 0:00:32]} 7. f4 {[%emt 0:02:07]} Qb6 {[%emt 0:00:50]} 8. Qd2 {[%emt 0:02:43]} Qxb2 {[%emt 0:00:08]} 9. Rb1 {[%emt 0:00:27]} Qa3 {[%emt 0:00:05]} 10. Be2 {[%emt 0:03:00] [#] Threatens to win with e5. 10.f5 is setting a new trend.} (10. f5 $5 {[%cal Rf5e6]}) 10... Be7 {[%emt 0:00:20] next ...h6 is good for Black. B97: Sicilian Najdorf: Poisoned Pawn.} 11. e5 {[%emt 0:02:47]} dxe5 {[%emt 0:00:05]} 12. fxe5 {[%emt 0:00:12]} Nfd7 {[%emt 0:00:06] [#] ...Bxg5 is the strong threat.} 13. h4 $146 {[%emt 0:01:25]} ({Predecessor:} 13. Rb3 Bxg5 14. Qxg5 Qc5 15. Qxg7 Qxe5 16. Qg4 h5 17. Qe4 h4 18. Rf1 Ra7 19. Qg4 {½-½ (28) Balzert,A (2345)-Vega Palma,M (2306) ICCF email 2021}) 13... Bb4 {[%emt 0:27:02]} 14. Rh3 {[%emt 0:32:43]} (14. Rb3 $15 Qa5 15. a3) 14... Ba5 {[%emt 0:22:00]} ({Better is} 14... O-O $17 15. Rb3 Qa5) 15. Kf1 $11 {[%emt 0:17:49]} Nxe5 {[%emt 0:21:15] Strongly threatening ...f6.} 16. Ncb5 {[%emt 0:12:14]} Bxd2 {[%emt 0:00:45][%cal Ba5d2,Bd2g5,Bg5h4,Bh4f6][%mdl 32]} 17. Rxa3 {[%emt 0:02:13]} Bxg5 {[%emt 0:00:22]} 18. Nc7+ $1 {[%emt 0:03:54][%cal Bb5c7,Bc7a8,Ba8b6][%mdl 32]} Kd8 {[%emt 0:00:42]} 19. Nxa8 {[%emt 0:00:09]} Bxh4 {[%emt 0:08:18]} 20. Nb6 {[%emt 0:02:08]} Bf6 $1 {[%emt 0:05:29]} 21. Rc3 $1 $36 {[%emt 0:06:37][%mdl 2048] Black is under pressure.} Nec6 {[%emt 0:01:48]} 22. Nxc6+ {[%emt 0:01:11]} Nxc6 {[%emt 0:00:05]} 23. Rc4 {[%emt 0:02:07]} Kc7 {[%emt 0:05:53]} 24. Bf3 {[%emt 0:00:34][%mdl 1024] White has compensation.} Rd8 {[%emt 0:01:34]} 25. Na8+ {[%emt 0:01:31]} Kd6 {[%emt 0:02:37] [#] Hoping for ...Bd7.} 26. Nb6 {[%emt 0:00:32]} Kc7 {[%emt 0:00:22]} 27. Na8+ {[%emt 0:00:57]} Kd6 {[%emt 0:00:03]} 28. Nb6 {[%emt 0:00:59]} Kc7 $1 {Weighted Error Value: White=0.12 (very precise) /Black=0.14 (very precise)} 1/2-1/2

[Event "Prague Festival-Challengers 2022"]
[Site "Prague"]
[Date "2022.06.08"]
[Round "1.3"]
[White "Pechac, Jergus"]
[Black "Stocek, Jiri"]
[Result "1-0"]
[ECO "E59"]
[WhiteElo "2597"]
[BlackElo "2533"]
[Annotator "TA"]
[PlyCount "71"]
[EventDate "2022.06.07"]
[EventType "tourn"]
[EventCountry "CZE"]
[SourceTitle "playchess.com"]
[Source "ChessBase"]
[SourceQuality "1"]
[TimeControl "40/5400+30:1800+30"]

{[%evp 20,71,14,20,33,16,37,36,40,30,95,77,75,81,80,88,75,87,90,89,68,48,64,65,75,26,16,28,60,50,70,71,82,0,0,-9,140,158,168,171,176,183,180,189,192,67,73,82,77,64,566,543,1181,1145]} 1. d4 {[%emt 0:00:15]} Nf6 {[%emt 0:00:24]} 2. c4 {[%emt 0:00:07]} e6 {[%emt 0:00:31]} 3. Nc3 {[%emt 0:00:09]} Bb4 {[%emt 0:00:21]} 4. e3 {[%emt 0:00:08]} O-O {[%emt 0:00:45]} 5. Bd3 {[%emt 0:00:06]} d5 {[%emt 0:00:44]} 6. Nf3 {[%emt 0:01:10]} dxc4 {[%emt 0:00:53]} 7. Bxc4 {[%emt 0:00:06]} c5 {[%emt 0:00:09]} 8. O-O {[%emt 0:00:09]} Nc6 {[%emt 0:01:53]} 9. a3 {[%emt 0:00:23]} Bxc3 {[%emt 0:00:22]} 10. bxc3 {[%emt 0:00:07]} Qc7 {[%emt 0:00:19]} 11. Re1 {[%emt 0:04:39] 11.h3 is setting a new trend.} Rd8 {[%emt 0:27:29] E59: Nimzo-Indian: Rubinstein: Main Line: 7...Nc6 8 a3 Bxc3 9 bxc3 dxc4.} 12. Ba2 {[%emt 0:07:10] [#]} e5 $146 {[%emt 0:04:08]} ({Predecessor:} 12... b6 13. e4 h6 14. e5 Nh7 15. Bb2 Bb7 16. Rc1 Qe7 17. Qd3 Na5 18. Nd2 Nf8 19. g3 Qc7 {½-½ (43) Croberson (2431)-Brf (2443) Playchess.com INT 2008}) 13. Ng5 {[%emt 0:02:40]} Rd7 {[%emt 0:03:26] White is slightly better.} 14. d5 {[%emt 0:00:23][%cal Og5f7]} e4 {[%emt 0:15:23]} (14... h6 $11 15. Nh3 (15. Nxf7 c4 $11) 15... Rd8) 15. Qc2 $1 $16 {[%emt 0:14:34]} ({Much worse is} 15. Nxf7 $6 c4 16. d6 (16. Bxc4 Na5 $17) 16... Qa5 17. Bxc4 Rxf7 $15) 15... Ne5 {[%emt 0:07:41]} 16. Nxe4 {[%emt 0:04:27]} Nxd5 {[%emt 0:00:40]} 17. f4 {[%emt 0:06:12]} Ng6 {[%emt 0:14:15]} 18. c4 {[%emt 0:01:09]} Nde7 {[%emt 0:00:16]} 19. Bb2 {[%emt 0:00:46]} b6 {[%emt 0:02:19]} 20. Bb1 {[%emt 0:06:34] Strongly threatening Qc3.} Qc6 {[%emt 0:04:26]} 21. Qf2 {[%emt 0:13:15]} f5 {[%emt 0:04:16]} 22. Nc3 {[%emt 0:04:39]} (22. Ng3 $16 {Threatens to win with e4.} Bb7 23. Nxf5) 22... Bb7 $11 {[%emt 0:00:43]} 23. e4 {[%emt 0:01:21]} Rf8 {[%emt 0:05:06]} 24. Nd5 {[%emt 0:07:40]} fxe4 {[%emt 0:01:20]} 25. Bxe4 {[%emt 0:00:05][%cal Bb1e4,Be4h7,Bh7c2,Bc2g6][%mdl 32]} Qd6 {[%emt 0:01:54][%cal Re7d5]} 26. Be5 {[%emt 0:11:09] White is much more active.} (26. g3 $16) 26... Qe6 $1 {[%emt 0:02:14]} 27. Bf6 {[%emt 0:07:37]} Qd6 {[%emt 0:01:21]} (27... Nxd5 $11 28. Bxd5 Bxd5 29. Rxe6 Bxe6) 28. Nxe7+ $1 $16 {[%emt 0:03:30]} Nxe7 {[%emt 0:00:03] [#]} 29. Bxh7+ $1 {[%emt 0:00:25][%mdl 512] This bishop pair is nice.} Kh8 {[%emt 0:00:53]} (29... Kxh7 $2 30. Bxe7 Rxf4 31. Bxd6) 30. Be5 {[%emt 0:02:22] Intending Qh4 and mate.} Qh6 {[%emt 0:00:18] Inhibits Qh4.} 31. Bc2 {[%emt 0:01:27] Re3 is the strong threat.} Nc6 {[%emt 0:00:45] [#]} 32. Re3 {[%emt 0:00:50]} ({Only move:} 32. Bc3 $1 $18 {And now Re3 would win.} Nd4 33. Re3) 32... Nxe5 $14 {[%emt 0:00:09][%mdl 64] Remove Defender} 33. Rxe5 $40 {[%emt 0:00:02][%mdl 128] Hoping for Qe2. White wants a kill.} Rd4 {[%emt 0:00:21]} 34. Qe2 {[%emt 0:00:36]} g6 {[%emt 0:01:08][%mdl 8192] Prevents Rh5.} (34... Qxf4 {gets mated.} 35. Rh5+) (34... Kg8 $1 $14) 35. Re7 $18 {[%emt 0:00:02]} Qxf4 {[%emt 0:00:34] aiming for ...Rd2.} 36. Bxg6 {[%emt 0:00:28] Weighted Error Value: White=0.12 (very precise) /Black=0.38} 1-0

[Event "Prague Festival-Challengers 2022"]
[Site "Prague"]
[Date "2022.06.08"]
[Round "1.4"]
[White "Niemann, Hans Moke"]
[Black "Abdusattorov, Nodirbek"]
[Result "1/2-1/2"]
[ECO "E49"]
[WhiteElo "2656"]
[BlackElo "2661"]
[Annotator "TA"]
[PlyCount "98"]
[EventDate "2022.06.07"]
[EventType "tourn"]
[EventCountry "CZE"]
[SourceTitle "playchess.com"]
[Source "ChessBase"]
[SourceQuality "1"]
[TimeControl "40/5400+30:1800+30"]

{[%evp 20,98,17,22,20,10,24,16,43,23,26,20,37,50,42,0,0,-27,0,0,0,-30,-15,-47,-11,-38,-31,-40,-34,-41,-14,-31,-18,-18,-32,-18,-22,-28,-24,-29,-32,-28,-16,-28,-8,-8,-9,-20,-20,-36,-25,-25,-22,-90,-95,-125,-31,-51,-7,-175,-186,-179,-173,-191,-31,-48,-8,-18,0,0,0,0,0,0,0,0,0,0,0,0,57]} 1. d4 {[%emt 0:00:12]} Nf6 {[%emt 0:00:20]} 2. c4 {[%emt 0:00:15]} e6 {[%emt 0:00:14]} 3. Nc3 {[%emt 0:00:24]} Bb4 {[%emt 0:00:10]} 4. e3 {[%emt 0:00:37]} O-O {[%emt 0:00:08]} 5. Bd3 {[%emt 0:00:47]} d5 {[%emt 0:01:09]} 6. a3 {[%emt 0:00:13]} Bxc3+ {[%emt 0:05:26]} 7. bxc3 {[%emt 0:00:11]} dxc4 {[%emt 0:01:13]} 8. Bxc4 {[%emt 0:00:13]} c5 {[%emt 0:00:10]} 9. Ne2 {[%emt 0:00:19]} b6 {[%emt 0:02:41]} 10. O-O {[%emt 0:09:53]} Qc7 {[%emt 0:05:48]} 11. Bd3 {[%emt 0:00:45]} Ba6 {[%emt 0:00:33] E49: Nimzo-Indian: Rubinstein: 5 Bd3 d5 6 a3 Bxc3+ 7 bxc3.} 12. e4 {[%emt 0:00:57]} Bxd3 {[%emt 0:02:37]} 13. Qxd3 {[%emt 0:00:10]} Nbd7 {[%emt 0:01:05]} (13... Ng4 14. e5 $16) 14. Bg5 {[%emt 0:10:52]} h6 $1 {[%emt 0:08:23][%mdl 4] 14...h6 is setting a new trend.} (14... Ng4 15. Qh3 Ngf6 16. e5 $16) 15. Bh4 {[%emt 0:04:18] [#]} b5 $146 {[%emt 0:10:18]} ({Predecessor:} 15... Rac8 16. e5 Nh7 17. f4 cxd4 18. cxd4 Qc2 19. Qe3 b5 20. Rfc1 Qf5 21. d5 exd5 22. Qxa7 {0-1 (52) Sarana,A (2666)-Sargsyan,S (2628) Warsaw 2021}) 16. f3 {[%emt 0:07:16]} a6 {[%emt 0:01:16]} 17. g4 {[%emt 0:08:39]} Rfc8 {[%emt 0:04:18][%cal Bf8c8,Bc8c2,Bc2a2][%mdl 32]} 18. Qe3 {[%emt 0:00:43]} cxd4 {[%emt 0:02:20]} 19. cxd4 {[%emt 0:03:00]} Qb6 {[%emt 0:03:51]} 20. g5 {[%emt 0:01:21]} hxg5 {[%emt 0:00:47]} 21. Bxg5 {[%emt 0:00:10]} Rc2 {[%emt 0:06:52]} 22. Kh1 {[%emt 0:00:48]} e5 {[%emt 0:03:28]} 23. Rg1 {[%emt 0:19:03]} Rac8 {[%emt 0:00:09]} 24. Rad1 {[%emt 0:03:56]} Ra2 {[%emt 0:07:35] And now ...Rcc2 would win.} 25. Rd2 {[%emt 0:00:42]} Rcc2 {[%emt 0:01:08]} 26. Rxc2 {[%emt 0:01:07]} Rxc2 {[%emt 0:00:03]} 27. Qd3 {[%emt 0:00:08]} Rc4 {[%emt 0:02:21][%cal Re5d4]} 28. Be3 {[%emt 0:01:31]} Qc7 {[%emt 0:03:23]} 29. Qd1 {[%emt 0:05:22]} g6 {[%emt 0:09:14]} 30. Qd3 {[%emt 0:04:31]} Rc2 {[%emt 0:03:44]} 31. Rd1 {[%emt 0:03:46]} Ra2 {[%emt 0:03:17]} 32. Rd2 {[%emt 0:02:05]} Rxd2 {[%emt 0:00:59]} (32... Ra1+ {is interesting.} 33. Kg2 Qa5 34. dxe5 Rxa3 35. Qd6 Rxe3 36. exf6 Nxf6 37. Kf2 Nxe4+ 38. fxe4 Rxe4 39. Qd8+ Qxd8 40. Rxd8+ Kg7) 33. Qxd2 {[%emt 0:00:51]} Ne8 {[%emt 0:01:47]} 34. dxe5 {[%emt 0:08:18]} Nxe5 {[%emt 0:00:05]} 35. Bf4 {[%emt 0:00:33] Black must now prevent Qd5.} Nc4 {[%emt 0:01:55]} 36. Qd5 {[%emt 0:01:19]} (36. Qd4 $11 Qc8 37. Bc1) 36... Qc8 $1 $17 {[%emt 0:00:31]} 37. Nd4 {[%emt 0:00:59]} Nf6 {[%emt 0:00:49]} (37... Nxa3 $17 {Hoping for ...Qc4.} 38. Kg2 Nc4) 38. Qg5 $15 {[%emt 0:00:33]} Qd8 {[%emt 0:03:51]} (38... Nh7 $5 {[%cal Rh7g5]} 39. Qd5 Qh3 40. Qd8+ Nf8 $15) 39. Be5 {[%emt 0:01:06]} (39. Nc6 $11 {and White stays safe.} Qd1+ 40. Kg2 Qc2+ 41. Kg1) 39... Nxe5 $19 {[%emt 0:00:20]} 40. Qxe5 {[%emt 0:00:00][%mdl 4096] Endgame [#] KQN-KQN} Nh5 $1 {[%emt 0:00:00]} 41. Kg2 {[%emt 0:06:19] [#]} a5 $2 {[%emt 0:02:59]} (41... Qa5 $1 $19 42. Qb8+ (42. Qe8+ Kg7 $17) 42... Kg7) 42. Kf2 $1 $15 {[%emt 0:01:55]} ({But not} 42. Nxb5 $2 Qd2+ 43. Kf1 (43. Kh3 $2 Nf4+ 44. Kh4 Qxh2+ 45. Kg4 Qh3+ 46. Kxf4 Qh2+ 47. Ke3 Qxe5 $19) 43... Nf4 44. Qb8+ Kg7 $19) 42... Qh4+ {[%emt 0:02:35]} 43. Ke3 {[%emt 0:01:16] The position is equal.} Qe1+ {[%emt 0:00:12]} 44. Ne2 $1 {[%emt 0:00:07]} Qb1 $1 {[%emt 0:02:20]} 45. Qe8+ {[%emt 0:00:37]} Kg7 {[%emt 0:00:03]} 46. Qe5+ {[%emt 0:00:06]} Kg8 {[%emt 0:02:56]} 47. Qe8+ {[%emt 0:00:20]} Kg7 {[%emt 0:00:02]} 48. Qe5+ {[%emt 0:00:16]} Kh7 {[%emt 0:00:24]} 49. Qd5 {[%emt 0:00:19]} Kg7 {[%emt 0:02:09] Weighted Error Value: White=0.18 (very precise) /Black=0.18 (very precise)} ({Don't play} 49... Qe1 50. Qxf7+ Ng7 51. Qc7 $16) ({Better is} 49... b4 $11) 1/2-1/2

[Event "Prague Festival-Challengers 2022"]
[Site "Prague"]
[Date "2022.06.08"]
[Round "1.5"]
[White "Michalik, Peter"]
[Black "Krzyzanowski, Marcin"]
[Result "1-0"]
[ECO "D38"]
[WhiteElo "2579"]
[BlackElo "2535"]
[Annotator "TA"]
[PlyCount "75"]
[EventDate "2022.06.07"]
[EventType "tourn"]
[EventCountry "CZE"]
[SourceTitle "playchess.com"]
[Source "ChessBase"]
[SourceQuality "1"]
[TimeControl "40/5400+30:1800+30"]

{[%evp 12,75,7,14,15,19,38,11,6,7,15,17,17,13,35,35,33,33,61,26,41,24,28,29,26,20,72,67,86,85,76,53,53,20,25,20,17,10,13,13,13,14,18,12,103,77,258,261,439,266,350,245,557,562,604,600,570,595,588,560,1042,1021,1218,1203,1190,895]} 1. d4 {[%emt 0:00:05]} Nf6 {[%emt 0:00:07]} 2. Nf3 {[%emt 0:00:05]} d5 {[%emt 0:00:22]} 3. c4 {[%emt 0:00:18]} e6 {[%emt 0:00:05]} 4. Nc3 {[%emt 0:00:16]} Bb4 {[%emt 0:00:32]} 5. cxd5 {[%emt 0:00:38]} exd5 {[%emt 0:00:07]} 6. Bg5 {[%emt 0:00:06]} h6 {[%emt 0:00:08]} 7. Bh4 {[%emt 0:00:10]} O-O {[%emt 0:00:39] 7...Bf5 is setting a new trend. D38: Queen's Gambit Declined: Ragozin Defence (4 Nf3 Bb4).} 8. e3 {[%emt 0:00:13]} Bf5 {[%emt 0:00:14]} 9. Be2 {[%emt 0:00:50]} (9. Qb3 $5 {[%cal Rb3b4]} Nc6 10. Bxf6 Qxf6 11. Qxd5 $14) 9... Nbd7 {[%emt 0:02:35] The position is equal.} 10. Qb3 {[%emt 0:00:46]} Bxc3+ {[%emt 0:00:47]} 11. Qxc3 {[%emt 0:00:07]} c6 {[%emt 0:04:36]} 12. Nd2 {[%emt 0:00:19]} Re8 {[%emt 0:02:30]} 13. O-O {[%emt 0:06:19]} a5 {[%emt 0:02:35]} 14. a4 {[%emt 0:05:19] [#]} Nf8 $146 {[%emt 0:04:24]} ({Predecessor:} 14... Qb6 15. Bd3 Bxd3 16. Qxd3 Ne4 17. Nxe4 dxe4 18. Qc4 Qa6 19. Qb3 Nb6 20. Rac1 Nd5 {½-½ (55) Bernabeu Lopez,C (2411)-Serarols Mabras,B (2344) Linares 2021}) 15. f3 {[%emt 0:05:22]} Bh7 {[%emt 0:08:26]} 16. Rfe1 {[%emt 0:03:05]} Ne6 {[%emt 0:06:54]} 17. Bf1 {[%emt 0:05:11]} g5 {[%emt 0:06:39]} 18. Bf2 {[%emt 0:01:57]} Nc7 {[%emt 0:01:41]} (18... Qe7 $11 {remains equal.}) 19. b4 $16 {[%emt 0:05:08]} Ne6 {[%emt 0:04:22]} 20. bxa5 {[%emt 0:10:35]} Qxa5 {[%emt 0:01:00]} 21. Qb2 {[%emt 0:00:30]} Ra7 {[%emt 0:06:07]} 22. e4 {[%emt 0:02:36]} Rea8 {[%emt 0:04:13]} 23. h4 {[%emt 0:06:23]} Qd8 {[%emt 0:05:25]} 24. hxg5 {[%emt 0:00:40]} hxg5 {[%emt 0:00:22]} 25. exd5 {[%emt 0:00:38]} Nxd5 {[%emt 0:03:33]} 26. Nc4 {[%emt 0:04:25]} Nef4 {[%emt 0:07:10]} 27. Ra3 {[%emt 0:04:05][%cal Ba1a3,Ba3b3,Bb3b7][%mdl 32] Prevents Bd3.} Qf8 {[%emt 0:07:50]} (27... Rxa4 28. Rxa4 Rxa4 29. Qxb7 $14) (27... Bf5 $11) 28. a5 {[%emt 0:03:08]} Nb4 $2 {[%emt 0:09:02] [#] This move loses the game for Black.} (28... b5 $16 29. axb6 Rxa3 30. Nxa3 (30. b7 Ra2 $11) 30... Rb8) 29. d5 $1 $18 {[%emt 0:11:37]} Nbxd5 $2 {[%emt 0:04:54]} (29... Nfxd5 30. Bxa7 Rxa7) 30. Rb3 {[%emt 0:04:27]} ({Less strong is} 30. g3 Ne6 31. Bh3 (31. Bxa7 Rxa7 32. Re5 Bg6 $16) 31... Ndc7 32. Bxa7 Rxa7 $18) 30... c5 {[%emt 0:01:56]} 31. Rxb7 {[%emt 0:00:34]} Ne6 $2 {[%emt 0:02:39]} (31... Rxb7 32. Qxb7 Rb8) 32. Ne5 {[%emt 0:01:17] White is clearly winning.} Rxb7 {[%emt 0:01:16]} 33. Qxb7 {[%emt 0:00:05]} Ndc7 {[%emt 0:00:41]} 34. a6 {[%emt 0:02:20][%cal Ba5a6,Ba6a7][%mdl 32]} Qd6 {[%emt 0:00:53]} 35. a7 {[%emt 0:03:26]} Nd8 {[%emt 0:01:21]} 36. Qb8 {[%emt 0:00:21]} Bf5 {[%emt 0:01:38]} 37. Nc4 {[%emt 0:00:19]} Qc6 {[%emt 0:00:43]} 38. Nb6 {[%emt 0:00:38] Weighted Error Value: White=0.14 (very precise) /Black=0.43} 1-0